[Event "*** SCC Grand Prix: Titled Tuesday Blitz"]
[Site "Chess.com"]
[Date "2020.06.23"]
[Round "6"]
[White "Mbneu"]
[Black "LuckSlayeer"]
[Result "0-1"]
[WhiteElo "2186"]
[BlackElo "2438"]
[TimeControl "180+1"]
[EndTime "11:03:15 PDT"]
[Termination "LuckSlayeer won by resignation"]

1. d4 {[%clk 0:00:22.1]} 1... b6 {[%clk 0:03:00.9]} 2. e4 {[%clk 0:00:21]} 2...
Bb7 {[%clk 0:03:01.1]} 3. Bd3 {[%clk 0:00:21.7]} 3... g6 {[%clk 0:02:58]} 4. f3
{[%clk 0:00:22]} 4... Bg7 {[%clk 0:02:58.7]} 5. Ne2 {[%clk 0:00:22.3]} 5... e6
{[%clk 0:02:58]} 6. O-O {[%clk 0:00:22.4]} 6... Ne7 {[%clk 0:02:58.6]} 7. c3
{[%clk 0:00:23.2]} 7... d6 {[%clk 0:02:59]} 8. Bg5 {[%clk 0:00:22.5]} 8... Nd7
{[%clk 0:02:59]} 9. Nd2 {[%clk 0:00:21.8]} 9... h6 {[%clk 0:02:59.1]} 10. Bh4
{[%clk 0:00:21.4]} 10... g5 {[%clk 0:02:59.4]} 11. Bg3 {[%clk 0:00:20.6]} 11...
Ng6 {[%clk 0:02:58.4]} 12. Qc2 {[%clk 0:00:19.4]} 12... Qe7 {[%clk 0:02:54.9]}
13. e5 {[%clk 0:00:19.4]} 13... Nh4 {[%clk 0:02:49.7]} 14. Be4 {[%clk
0:00:19.4]} 14... d5 {[%clk 0:02:48]} 15. Bxh4 {[%clk 0:00:20.3]} 15... dxe4
{[%clk 0:02:46.5]} 16. Bg3 {[%clk 0:00:18.3]} 16... exf3 {[%clk 0:02:45.1]} 17.
Nxf3 {[%clk 0:00:18.9]} 17... O-O-O {[%clk 0:02:40.7]} 18. Rad1 {[%clk
0:00:18.2]} 18... h5 {[%clk 0:02:36.1]} 19. b4 {[%clk 0:00:17.2]} 19... h4
{[%clk 0:02:34]} 20. Bf2 {[%clk 0:00:17.4]} 20... h3 {[%clk 0:02:28.3]} 21. g3
{[%clk 0:00:17.2]} 0-1

[Event "*** SCC Grand Prix: Titled Tuesday Blitz"]
[Site "Chess.com"]
[Date "2020.06.23"]
[Round "6"]
[White "MrChampion_Coach"]
[Black "chess94cu"]
[Result "0-1"]
[WhiteElo "2432"]
[BlackElo "2552"]
[TimeControl "180+1"]
[EndTime "11:03:21 PDT"]
[Termination "chess94cu won by resignation"]

1. e4 {[%clk 0:02:58.7]} 1... c6 {[%clk 0:02:59.3]} 2. d4 {[%clk 0:02:54.3]}
2... d5 {[%clk 0:03:00.2]} 3. e5 {[%clk 0:02:54.8]} 3... Bf5 {[%clk 0:02:59.5]}
4. h4 {[%clk 0:02:54.9]} 4... h5 {[%clk 0:02:58.7]} 5. c4 {[%clk 0:02:52.9]}
5... e6 {[%clk 0:02:57.9]} 6. Nc3 {[%clk 0:02:52.2]} 6... Bb4 {[%clk 0:02:51.5]}
7. Bg5 {[%clk 0:02:46]} 7... Qa5 {[%clk 0:02:44]} 8. Qb3 {[%clk 0:02:41.3]} 8...
dxc4 {[%clk 0:02:36.8]} 9. Bxc4 {[%clk 0:02:40.2]} 9... Nd7 {[%clk 0:02:36.8]}
10. a3 {[%clk 0:02:16.5]} 10... Be7 {[%clk 0:02:24.4]} 11. Ne2 {[%clk
0:02:13.9]} 11... Nb6 {[%clk 0:02:19.4]} 12. Ng3 {[%clk 0:02:10.5]} 12... Bg6
{[%clk 0:02:17.6]} 13. Ne4 {[%clk 0:02:09.3]} 13... Bxe4 {[%clk 0:02:02.7]} 14.
Bxe6 {[%clk 0:02:03.7]} 14... fxe6 {[%clk 0:01:52.6]} 15. Qxe6 {[%clk 0:02:03]}
15... Bd5 {[%clk 0:01:50]} 16. Qg6+ {[%clk 0:02:02.7]} 16... Bf7 {[%clk
0:01:40.7]} 17. Qxg7 {[%clk 0:02:02.7]} 17... Nd5 {[%clk 0:01:37.7]} 18. Qxh8
{[%clk 0:01:59.5]} 18... Nxc3 {[%clk 0:01:37.9]} 19. Bd2 {[%clk 0:01:59.6]}
19... Qd5 {[%clk 0:01:34.4]} 20. Bxc3 {[%clk 0:01:52]} 20... Qxg2 {[%clk
0:01:33.3]} 21. O-O-O {[%clk 0:01:51.5]} 21... O-O-O {[%clk 0:01:32.6]} 22. Rhg1
{[%clk 0:01:36.6]} 22... Qe4 {[%clk 0:01:27.9]} 23. Qh7 {[%clk 0:01:27.7]} 23...
Qxh7 {[%clk 0:01:25.2]} 0-1

[Event "*** SCC Grand Prix: Titled Tuesday Blitz"]
[Site "Chess.com"]
[Date "2020.06.23"]
[Round "6"]
[White "MateusViageiro"]
[Black "Ovsiannikov_Maxim"]
[Result "1-0"]
[WhiteElo "2250"]
[BlackElo "2103"]
[TimeControl "180+1"]
[EndTime "11:03:26 PDT"]
[Termination "MateusViageiro won by checkmate"]

1. e4 {[%clk 0:03:00.9]} 1... e6 {[%clk 0:02:59.8]} 2. Qe2 {[%clk 0:03:00.2]}
2... Be7 {[%clk 0:02:59.1]} 3. d4 {[%clk 0:02:59.7]} 3... d5 {[%clk 0:02:59]} 4.
Nc3 {[%clk 0:02:59.1]} 4... dxe4 {[%clk 0:02:56.8]} 5. Qxe4 {[%clk 0:02:57.5]}
5... Nf6 {[%clk 0:02:56.1]} 6. Qd3 {[%clk 0:02:57.6]} 6... c5 {[%clk 0:02:54.8]}
7. Nf3 {[%clk 0:02:57.5]} 7... Nc6 {[%clk 0:02:54.5]} 8. Be3 {[%clk 0:02:55.9]}
8... cxd4 {[%clk 0:02:54.2]} 9. Nxd4 {[%clk 0:02:55.3]} 9... Nxd4 {[%clk
0:02:52]} 10. Bxd4 {[%clk 0:02:55.1]} 10... O-O {[%clk 0:02:50.2]} 11. O-O-O
{[%clk 0:02:54]} 11... Qa5 {[%clk 0:02:50.2]} 12. Kb1 {[%clk 0:02:50.3]} 12...
a6 {[%clk 0:02:48.8]} 13. Be2 {[%clk 0:02:48.9]} 13... b5 {[%clk 0:02:48.9]} 14.
Bf3 {[%clk 0:02:47.5]} 14... b4 {[%clk 0:02:44.6]} 15. Bxa8 {[%clk 0:02:43.9]}
15... bxc3 {[%clk 0:02:44.1]} 16. Bxc3 {[%clk 0:02:42.9]} 16... Qb6 {[%clk
0:02:38.4]} 17. Bd4 {[%clk 0:02:37.1]} 17... Qb8 {[%clk 0:02:21.1]} 18. Bf3
{[%clk 0:02:35.9]} 18... Bd7 {[%clk 0:02:20.8]} 19. Bxf6 {[%clk 0:02:34]} 19...
Bb5 {[%clk 0:02:21.1]} 20. c4 {[%clk 0:02:27.7]} 20... Bxf6 {[%clk 0:02:12.3]}
21. cxb5 {[%clk 0:02:27.2]} 21... Qe5 {[%clk 0:02:10.6]} 22. Qb3 {[%clk
0:02:17.9]} 22... Rb8 {[%clk 0:02:09.4]} 23. b6 {[%clk 0:02:16.3]} 23... Qa5
{[%clk 0:02:02]} 24. b7 {[%clk 0:02:15]} 24... g5 {[%clk 0:01:59.9]} 25. Rc1
{[%clk 0:02:13.6]} 25... Kg7 {[%clk 0:01:59.2]} 26. Rc8 {[%clk 0:02:10.3]} 26...
Qf5+ {[%clk 0:01:55.6]} 27. Ka1 {[%clk 0:02:09.4]} 27... Be5 {[%clk 0:01:54.9]}
28. Re1 {[%clk 0:02:03.8]} 28... Qf4 {[%clk 0:01:53.1]} 29. g3 {[%clk
0:01:59.5]} 29... Rxb7 {[%clk 0:01:50.7]} 30. Bxb7 {[%clk 0:01:55.3]} 30... Qxf2
{[%clk 0:01:47.3]} 31. Rcc1 {[%clk 0:01:53.6]} 31... a5 {[%clk 0:01:43.2]} 32.
Rxe5 {[%clk 0:01:51.9]} 32... a4 {[%clk 0:01:42]} 33. Qc3 {[%clk 0:01:51.1]}
33... a3 {[%clk 0:01:40.5]} 34. Rxg5+ {[%clk 0:01:47]} 34... Kh6 {[%clk
0:01:40]} 35. Qg7# {[%clk 0:01:45.7]} 1-0

[Event "*** SCC Grand Prix: Titled Tuesday Blitz"]
[Site "Chess.com"]
[Date "2020.06.23"]
[Round "6"]
[White "justantan"]
[Black "Herracek"]
[Result "0-1"]
[WhiteElo "2768"]
[BlackElo "2591"]
[TimeControl "180+1"]
[EndTime "11:03:43 PDT"]
[Termination "Herracek won by resignation"]

1. e4 {[%clk 0:03:00.9]} 1... c5 {[%clk 0:03:00.1]} 2. Nf3 {[%clk 0:03:00.7]}
2... Nc6 {[%clk 0:03:00.6]} 3. Bb5 {[%clk 0:02:59.7]} 3... g6 {[%clk 0:03:00.8]}
4. O-O {[%clk 0:02:58.9]} 4... Bg7 {[%clk 0:03:00.8]} 5. Re1 {[%clk 0:02:57.7]}
5... e5 {[%clk 0:03:00.4]} 6. Bxc6 {[%clk 0:02:51.8]} 6... dxc6 {[%clk
0:03:01.3]} 7. d3 {[%clk 0:02:51.6]} 7... b6 {[%clk 0:02:56.5]} 8. a4 {[%clk
0:02:50.6]} 8... Be6 {[%clk 0:02:55.4]} 9. a5 {[%clk 0:02:50.4]} 9... f6 {[%clk
0:02:53.8]} 10. Be3 {[%clk 0:02:47.9]} 10... Nh6 {[%clk 0:02:51.8]} 11. h3
{[%clk 0:02:46.6]} 11... Nf7 {[%clk 0:02:52]} 12. Nbd2 {[%clk 0:02:45.8]} 12...
O-O {[%clk 0:02:51.4]} 13. Qb1 {[%clk 0:02:44.9]} 13... f5 {[%clk 0:02:44.9]}
14. Nc4 {[%clk 0:02:44.6]} 14... f4 {[%clk 0:02:38.5]} 15. Bd2 {[%clk
0:02:41.7]} 15... b5 {[%clk 0:02:38.2]} 16. Na3 {[%clk 0:02:39.6]} 16... g5
{[%clk 0:02:37.9]} 17. Nh2 {[%clk 0:02:30.6]} 17... h5 {[%clk 0:02:36.8]} 18.
Qd1 {[%clk 0:02:30.2]} 18... g4 {[%clk 0:02:00.1]} 19. hxg4 {[%clk 0:02:29.7]}
19... hxg4 {[%clk 0:02:01]} 20. Nxg4 {[%clk 0:02:30.2]} 20... Qh4 {[%clk
0:01:57.1]} 21. Nh2 {[%clk 0:02:22.5]} 21... Ng5 {[%clk 0:01:53.4]} 22. f3
{[%clk 0:02:09.9]} 22... Rf6 {[%clk 0:01:49.8]} 23. Rf1 {[%clk 0:01:35]} 23...
Rh6 {[%clk 0:01:42.2]} 24. Ng4 {[%clk 0:01:31]} 24... Bxg4 {[%clk 0:01:41.5]}
25. fxg4 {[%clk 0:01:30.3]} 25... Qh2+ {[%clk 0:01:15.1]} 26. Kf2 {[%clk
0:01:29.9]} 26... Nh3+ {[%clk 0:01:15.5]} 27. Ke1 {[%clk 0:01:29.6]} 27... Qg3+
{[%clk 0:01:13.5]} 28. Ke2 {[%clk 0:01:29.8]} 28... Qxg2+ {[%clk 0:01:13.1]} 29.
Ke1 {[%clk 0:01:30.1]} 29... Qg3+ {[%clk 0:01:12.4]} 30. Ke2 {[%clk 0:01:29.8]}
30... Ng1+ {[%clk 0:01:10.7]} 31. Rxg1 {[%clk 0:01:29.8]} 31... Rh2+ {[%clk
0:01:10.8]} 0-1

[Event "*** SCC Grand Prix: Titled Tuesday Blitz"]
[Site "Chess.com"]
[Date "2020.06.23"]
[Round "6"]
[White "Quiet_Desperation"]
[Black "cukin84"]
[Result "1-0"]
[WhiteElo "1952"]
[BlackElo "2154"]
[TimeControl "180+1"]
[EndTime "11:03:54 PDT"]
[Termination "Quiet_Desperation won by resignation"]

1. e4 {[%clk 0:03:00.9]} 1... c6 {[%clk 0:02:59.5]} 2. Nf3 {[%clk 0:02:59.3]}
2... d5 {[%clk 0:02:59.6]} 3. Nc3 {[%clk 0:02:59.8]} 3... Bg4 {[%clk 0:02:59.4]}
4. h3 {[%clk 0:02:59.7]} 4... Bxf3 {[%clk 0:02:59.1]} 5. Qxf3 {[%clk 0:03:00.6]}
5... e6 {[%clk 0:02:59.2]} 6. d4 {[%clk 0:03:00.3]} 6... Nd7 {[%clk 0:02:58.6]}
7. Bd3 {[%clk 0:02:59.6]} 7... dxe4 {[%clk 0:02:58.2]} 8. Nxe4 {[%clk
0:03:00.5]} 8... Ngf6 {[%clk 0:02:57.5]} 9. Bf4 {[%clk 0:02:59.1]} 9... Nxe4
{[%clk 0:02:56.6]} 10. Qxe4 {[%clk 0:02:59.4]} 10... Nf6 {[%clk 0:02:56.4]} 11.
Qf3 {[%clk 0:02:59.7]} 11... Qd5 {[%clk 0:02:56.1]} 12. Qxd5 {[%clk 0:02:56.9]}
12... Nxd5 {[%clk 0:02:55.5]} 13. Bd2 {[%clk 0:02:57.1]} 13... Bd6 {[%clk
0:02:52.8]} 14. O-O-O {[%clk 0:02:57.1]} 14... Nf4 {[%clk 0:02:47.7]} 15. Bf1
{[%clk 0:02:55.8]} 15... O-O-O {[%clk 0:02:45.6]} 16. g3 {[%clk 0:02:56]} 16...
Ng6 {[%clk 0:02:45.1]} 17. c3 {[%clk 0:02:54.5]} 17... h5 {[%clk 0:02:41.1]} 18.
h4 {[%clk 0:02:54.6]} 18... Ne7 {[%clk 0:02:40.1]} 19. Bg5 {[%clk 0:02:52]}
19... f6 {[%clk 0:02:39.8]} 20. Be3 {[%clk 0:02:52]} 20... e5 {[%clk 0:02:38.3]}
21. dxe5 {[%clk 0:02:50.8]} 21... Bxe5 {[%clk 0:02:37.7]} 22. Bxa7 {[%clk
0:02:50.2]} 22... Rxd1+ {[%clk 0:02:35.4]} 23. Kxd1 {[%clk 0:02:51.1]} 23... Kc7
{[%clk 0:02:28.8]} 24. Be3 {[%clk 0:02:48.5]} 24... Nf5 {[%clk 0:02:24.6]} 25.
Ke2 {[%clk 0:02:43.5]} 25... Ra8 {[%clk 0:02:20.5]} 26. a3 {[%clk 0:02:43.2]}
26... b5 {[%clk 0:02:15.4]} 27. Bh3 {[%clk 0:02:42.1]} 27... Nd6 {[%clk
0:02:13.9]} 28. Rd1 {[%clk 0:02:38.7]} 28... Nc4 {[%clk 0:02:11.4]} 29. Rd7+
{[%clk 0:02:37.1]} 29... Kb8 {[%clk 0:02:04]} 30. Rxg7 {[%clk 0:02:37.2]} 30...
Nxb2 {[%clk 0:01:53.2]} 31. Rg8+ {[%clk 0:02:37]} 31... Kb7 {[%clk 0:01:51.9]}
32. Rxa8 {[%clk 0:02:37.9]} 32... Kxa8 {[%clk 0:01:51.6]} 33. g4 {[%clk
0:02:38.8]} 33... hxg4 {[%clk 0:01:47.5]} 34. Bxg4 {[%clk 0:02:39.2]} 34... Bxc3
{[%clk 0:01:47.6]} 35. Bf5 {[%clk 0:02:37]} 35... b4 {[%clk 0:01:21.6]} 36. axb4
{[%clk 0:02:35.9]} 36... Bxb4 {[%clk 0:01:21.3]} 37. h5 {[%clk 0:02:35.3]} 37...
Bf8 {[%clk 0:01:21.1]} 38. Bd4 {[%clk 0:02:28]} 38... Bg7 {[%clk 0:01:18.8]} 39.
Bxb2 {[%clk 0:02:27.7]} 39... Kb7 {[%clk 0:01:17.7]} 40. Kd3 {[%clk 0:02:27.7]}
40... Kb6 {[%clk 0:01:17.4]} 41. Kc4 {[%clk 0:02:27.9]} 41... c5 {[%clk
0:01:16.8]} 42. Ba3 {[%clk 0:02:26.8]} 42... Kc6 {[%clk 0:01:16.9]} 43. Bxc5
{[%clk 0:02:26.6]} 43... Bh6 {[%clk 0:01:15.8]} 44. Be7 {[%clk 0:02:24.9]} 44...
Bg5 {[%clk 0:01:15.5]} 45. Kd4 {[%clk 0:02:17.7]} 45... Kc7 {[%clk 0:01:10.3]}
46. Ke4 {[%clk 0:02:17.7]} 46... Kc6 {[%clk 0:01:09.6]} 47. f4 {[%clk
0:02:17.2]} 47... Bh6 {[%clk 0:01:09.6]} 48. Bxf6 {[%clk 0:02:16.3]} 48... Kd6
{[%clk 0:01:09.8]} 49. Bg5 {[%clk 0:02:16]} 49... Bg7 {[%clk 0:01:09.2]} 50. h6
{[%clk 0:02:15.9]} 50... Bh8 {[%clk 0:01:09.4]} 51. Bg4 {[%clk 0:02:13.7]} 51...
Bc3 {[%clk 0:01:05.4]} 52. Kf5 {[%clk 0:02:13.7]} 52... Bh8 {[%clk 0:01:03.4]}
53. Kg6 {[%clk 0:02:13.9]} 1-0

[Event "*** SCC Grand Prix: Titled Tuesday Blitz"]
[Site "Chess.com"]
[Date "2020.06.23"]
[Round "6"]
[White "killer311"]
[Black "Kildepiotr"]
[Result "0-1"]
[WhiteElo "2418"]
[BlackElo "2602"]
[TimeControl "180+1"]
[EndTime "11:03:55 PDT"]
[Termination "Kildepiotr won by checkmate"]

1. d4 {[%clk 0:03:00.9]} 1... c5 {[%clk 0:02:59.1]} 2. d5 {[%clk 0:02:59.8]}
2... e5 {[%clk 0:02:58.9]} 3. c4 {[%clk 0:03:00.1]} 3... d6 {[%clk 0:02:58.4]}
4. Nc3 {[%clk 0:03:00.7]} 4... Be7 {[%clk 0:02:58.3]} 5. g3 {[%clk 0:03:01.2]}
5... Bg5 {[%clk 0:02:58.2]} 6. Bg2 {[%clk 0:03:01.6]} 6... Bxc1 {[%clk 0:02:58]}
7. Rxc1 {[%clk 0:03:00.4]} 7... Ne7 {[%clk 0:02:58.9]} 8. e4 {[%clk 0:02:59.1]}
8... O-O {[%clk 0:02:58.8]} 9. Nf3 {[%clk 0:02:58.7]} 9... Nd7 {[%clk
0:02:57.4]} 10. O-O {[%clk 0:02:57.8]} 10... f5 {[%clk 0:02:57.4]} 11. Ng5
{[%clk 0:02:55.7]} 11... Nf6 {[%clk 0:02:53.9]} 12. exf5 {[%clk 0:02:53.9]}
12... Nxf5 {[%clk 0:02:52.7]} 13. Ne6 {[%clk 0:02:54.4]} 13... Bxe6 {[%clk
0:02:48]} 14. dxe6 {[%clk 0:02:55.3]} 14... Nd4 {[%clk 0:02:40.2]} 15. Bxb7
{[%clk 0:02:49.6]} 15... Rb8 {[%clk 0:02:40.2]} 16. Bd5 {[%clk 0:02:49.4]} 16...
Qe7 {[%clk 0:02:39.9]} 17. b3 {[%clk 0:02:48.6]} 17... Nxe6 {[%clk 0:02:36]} 18.
f4 {[%clk 0:02:42.9]} 18... Kh8 {[%clk 0:02:26.2]} 19. fxe5 {[%clk 0:02:41.6]}
19... dxe5 {[%clk 0:02:23.5]} 20. Qe2 {[%clk 0:02:37.2]} 20... Nd4 {[%clk
0:02:20.7]} 21. Qe3 {[%clk 0:02:36.6]} 21... Ng4 {[%clk 0:01:53.3]} 22. Qe4
{[%clk 0:02:29.9]} 22... Qg5 {[%clk 0:01:53]} 23. h4 {[%clk 0:02:18.7]} 23...
Qh5 {[%clk 0:01:39.7]} 24. Rxf8+ {[%clk 0:02:15.1]} 24... Rxf8 {[%clk 0:01:39]}
25. Rf1 {[%clk 0:02:16]} 25... Rxf1+ {[%clk 0:01:37.6]} 26. Kxf1 {[%clk
0:02:16.9]} 26... Nf6 {[%clk 0:01:34.3]} 27. Qe3 {[%clk 0:02:05]} 27... h6
{[%clk 0:01:29]} 28. Bg2 {[%clk 0:02:01.8]} 28... Qf5+ {[%clk 0:01:22.5]} 29.
Kg1 {[%clk 0:02:00.6]} 29... Ng4 {[%clk 0:01:22]} 30. Qe1 {[%clk 0:01:52.7]}
30... Nf3+ {[%clk 0:01:13.9]} 31. Bxf3 {[%clk 0:01:52.2]} 31... Qxf3 {[%clk
0:01:14.8]} 32. Ne4 {[%clk 0:01:48.2]} 32... Ne3 {[%clk 0:01:11.7]} 33. Qd2
{[%clk 0:01:34.3]} 33... Qxe4 {[%clk 0:01:09.9]} 34. Qd8+ {[%clk 0:01:32.5]}
34... Kh7 {[%clk 0:01:09.7]} 35. h5 {[%clk 0:01:33.4]} 35... Qg2# {[%clk
0:01:09.2]} 0-1

[Event "*** SCC Grand Prix: Titled Tuesday Blitz"]
[Site "Chess.com"]
[Date "2020.06.23"]
[Round "6"]
[White "floplover"]
[Black "juniortay"]
[Result "0-1"]
[WhiteElo "2228"]
[BlackElo "2406"]
[TimeControl "180+1"]
[EndTime "11:03:55 PDT"]
[Termination "juniortay won by resignation"]

1. d4 {[%clk 0:03:00.9]} 1... d5 {[%clk 0:02:59.4]} 2. c4 {[%clk 0:03:00.9]}
2... e6 {[%clk 0:02:59.3]} 3. Nc3 {[%clk 0:03:01.3]} 3... c5 {[%clk 0:02:59.3]}
4. Nf3 {[%clk 0:02:56.5]} 4... Nc6 {[%clk 0:02:58.2]} 5. cxd5 {[%clk 0:02:56.4]}
5... exd5 {[%clk 0:02:57.4]} 6. g3 {[%clk 0:02:56.7]} 6... Nf6 {[%clk
0:02:57.2]} 7. Bg2 {[%clk 0:02:56.9]} 7... cxd4 {[%clk 0:02:57.5]} 8. Nxd4
{[%clk 0:02:56.3]} 8... Bc5 {[%clk 0:02:58.1]} 9. Nb3 {[%clk 0:02:53]} 9... Bb6
{[%clk 0:02:56.4]} 10. Bg5 {[%clk 0:02:50.2]} 10... Be6 {[%clk 0:02:55.6]} 11.
O-O {[%clk 0:02:48.8]} 11... O-O {[%clk 0:02:55.6]} 12. Rc1 {[%clk 0:02:41.9]}
12... h6 {[%clk 0:02:55]} 13. Bxf6 {[%clk 0:02:03.8]} 13... Qxf6 {[%clk
0:02:54.1]} 14. Bxd5 {[%clk 0:02:00.1]} 14... Rfd8 {[%clk 0:02:49.5]} 15. e4
{[%clk 0:01:55.7]} 15... Bh3 {[%clk 0:02:48]} 16. Qe2 {[%clk 0:01:33]} 16... Ne5
{[%clk 0:02:33.8]} 17. Na4 {[%clk 0:01:03.8]} 17... Bg4 {[%clk 0:02:29.7]} 18.
Qb5 {[%clk 0:00:43.3]} 18... Bh3 {[%clk 0:01:55.6]} 19. Nxb6 {[%clk 0:00:37.1]}
19... Qf3 {[%clk 0:01:51.2]} 0-1

[Event "*** SCC Grand Prix: Titled Tuesday Blitz"]
[Site "Chess.com"]
[Date "2020.06.23"]
[Round "6"]
[White "Sashadav97"]
[Black "mbachez"]
[Result "0-1"]
[WhiteElo "2591"]
[BlackElo "2443"]
[TimeControl "180+1"]
[EndTime "11:04:01 PDT"]
[Termination "mbachez won by resignation"]

1. d4 {[%clk 0:03:00.9]} 1... Nf6 {[%clk 0:02:58.3]} 2. c4 {[%clk 0:03:00.9]}
2... Nc6 {[%clk 0:02:57.4]} 3. Nc3 {[%clk 0:02:58.5]} 3... e5 {[%clk 0:02:57.3]}
4. d5 {[%clk 0:02:58.6]} 4... Ne7 {[%clk 0:02:57.6]} 5. h4 {[%clk 0:02:59.3]}
5... Neg8 {[%clk 0:02:57.1]} 6. e3 {[%clk 0:02:57.2]} 6... Bb4 {[%clk
0:02:56.4]} 7. Bd2 {[%clk 0:02:56]} 7... Qe7 {[%clk 0:02:51.3]} 8. a3 {[%clk
0:02:54.4]} 8... Bxc3 {[%clk 0:02:51.3]} 9. Bxc3 {[%clk 0:02:55]} 9... d6 {[%clk
0:02:50.8]} 10. Nf3 {[%clk 0:02:54.6]} 10... Nh6 {[%clk 0:02:50.3]} 11. Nd2
{[%clk 0:02:52.4]} 11... O-O {[%clk 0:02:49.8]} 12. Bd3 {[%clk 0:02:50.5]} 12...
Nfg4 {[%clk 0:02:45.6]} 13. Qe2 {[%clk 0:02:48.3]} 13... f5 {[%clk 0:02:45.7]}
14. O-O-O {[%clk 0:02:43.3]} 14... e4 {[%clk 0:02:34.1]} 15. Bc2 {[%clk
0:02:41.8]} 15... c6 {[%clk 0:02:32.1]} 16. Kb1 {[%clk 0:02:36]} 16... Bd7
{[%clk 0:02:27.8]} 17. f3 {[%clk 0:02:33.7]} 17... exf3 {[%clk 0:02:19]} 18.
gxf3 {[%clk 0:02:34.6]} 18... Nxe3 {[%clk 0:02:15]} 19. Rhg1 {[%clk 0:01:50.6]}
19... Rf7 {[%clk 0:02:09.7]} 20. Rde1 {[%clk 0:01:50.7]} 20... f4 {[%clk
0:01:55.8]} 21. Ne4 {[%clk 0:01:45.8]} 21... Bf5 {[%clk 0:01:44.6]} 22. Bd3
{[%clk 0:01:42]} 22... Re8 {[%clk 0:01:31.3]} 23. Rg5 {[%clk 0:01:33]} 23...
cxd5 {[%clk 0:01:25.6]} 24. Reg1 {[%clk 0:01:30.4]} 24... dxe4 {[%clk 0:01:06]}
25. Rxg7+ {[%clk 0:01:30]} 25... Rxg7 {[%clk 0:01:05.8]} 26. Rxg7+ {[%clk
0:01:30.4]} 26... Qxg7 {[%clk 0:01:06]} 27. Bxg7 {[%clk 0:01:30.1]} 27... exd3
{[%clk 0:01:06.4]} 0-1

[Event "*** SCC Grand Prix: Titled Tuesday Blitz"]
[Site "Chess.com"]
[Date "2020.06.23"]
[Round "6"]
[White "GregShahade"]
[Black "Sadykov_Ramil"]
[Result "1-0"]
[WhiteElo "2578"]
[BlackElo "2403"]
[TimeControl "180+1"]
[EndTime "11:04:01 PDT"]
[Termination "GregShahade won by resignation"]

1. e4 {[%clk 0:03:00.9]} 1... e6 {[%clk 0:02:59.5]} 2. d4 {[%clk 0:03:00.9]}
2... d5 {[%clk 0:03:00.1]} 3. Nd2 {[%clk 0:03:00.9]} 3... dxe4 {[%clk
0:03:00.1]} 4. Nxe4 {[%clk 0:03:01.8]} 4... Nd7 {[%clk 0:03:00.5]} 5. Nf3 {[%clk
0:03:01]} 5... Ngf6 {[%clk 0:03:01]} 6. Nxf6+ {[%clk 0:03:01]} 6... Nxf6 {[%clk
0:03:01.2]} 7. c3 {[%clk 0:03:00.6]} 7... c5 {[%clk 0:02:57.6]} 8. Ne5 {[%clk
0:02:59.5]} 8... a6 {[%clk 0:02:48.9]} 9. Be3 {[%clk 0:02:54.7]} 9... cxd4
{[%clk 0:02:47.9]} 10. Bxd4 {[%clk 0:02:54.6]} 10... Bd6 {[%clk 0:02:46]} 11.
Qf3 {[%clk 0:02:52.1]} 11... Qc7 {[%clk 0:02:43.5]} 12. Nc4 {[%clk 0:02:46.5]}
12... e5 {[%clk 0:02:22.7]} 13. Bb6 {[%clk 0:02:37.4]} 13... Qe7 {[%clk
0:02:19.3]} 14. O-O-O {[%clk 0:02:12.8]} 14... Bb8 {[%clk 0:02:13.7]} 15. Rd8+
{[%clk 0:02:08.7]} 15... Qxd8 {[%clk 0:02:05.1]} 16. Bxd8 {[%clk 0:02:09.6]}
16... Kxd8 {[%clk 0:02:05.2]} 17. Nb6 {[%clk 0:02:04.8]} 17... Ra7 {[%clk
0:02:03.7]} 18. Bc4 {[%clk 0:01:56.6]} 18... Bg4 {[%clk 0:01:58.9]} 19. Qe3
{[%clk 0:01:39.1]} 19... Ke7 {[%clk 0:01:35.2]} 20. f3 {[%clk 0:01:33.6]} 20...
Bf5 {[%clk 0:01:31.2]} 21. Rd1 {[%clk 0:01:19.3]} 21... Rd8 {[%clk 0:01:06.8]}
22. Qc5+ {[%clk 0:01:15.2]} 22... Bd6 {[%clk 0:01:05.5]} 23. Rxd6 {[%clk
0:01:11.4]} 23... Rxd6 {[%clk 0:01:04]} 24. Qxe5+ {[%clk 0:01:11.1]} 24... Be6
{[%clk 0:00:56.9]} 25. Nc8+ {[%clk 0:01:10.9]} 1-0

[Event "*** SCC Grand Prix: Titled Tuesday Blitz"]
[Site "Chess.com"]
[Date "2020.06.23"]
[Round "6"]
[White "Konavets"]
[Black "verdest"]
[Result "1-0"]
[WhiteElo "2994"]
[BlackElo "2550"]
[TimeControl "180+1"]
[EndTime "11:04:06 PDT"]
[Termination "Konavets won on time"]

1. b3 {[%clk 0:03:00.9]} 1... e5 {[%clk 0:02:58.6]} 2. Bb2 {[%clk 0:03:01.8]}
2... Nc6 {[%clk 0:02:57.6]} 3. e3 {[%clk 0:03:02.7]} 3... Nf6 {[%clk 0:02:57.4]}
4. Bb5 {[%clk 0:03:02.8]} 4... Bd6 {[%clk 0:02:57.3]} 5. Na3 {[%clk 0:03:03.1]}
5... Be7 {[%clk 0:02:56.9]} 6. Nc4 {[%clk 0:03:03.1]} 6... e4 {[%clk 0:02:51]}
7. Bxc6 {[%clk 0:03:03.2]} 7... dxc6 {[%clk 0:02:50.1]} 8. f3 {[%clk 0:03:03.8]}
8... O-O {[%clk 0:02:41.7]} 9. f4 {[%clk 0:03:03.6]} 9... Bg4 {[%clk 0:02:29]}
10. Ne2 {[%clk 0:03:03.4]} 10... h5 {[%clk 0:02:29.4]} 11. h3 {[%clk 0:03:03.4]}
11... Be6 {[%clk 0:02:18.6]} 12. Ne5 {[%clk 0:03:03.2]} 12... h4 {[%clk
0:02:07.9]} 13. Nd4 {[%clk 0:03:02.8]} 13... Bc8 {[%clk 0:02:03.7]} 14. Qe2
{[%clk 0:03:02.4]} 14... c5 {[%clk 0:02:03.4]} 15. Nb5 {[%clk 0:03:02.7]} 15...
a6 {[%clk 0:01:57.4]} 16. Nc3 {[%clk 0:03:02.4]} 16... Bf5 {[%clk 0:01:41.2]}
17. O-O-O {[%clk 0:03:02.2]} 17... Nd5 {[%clk 0:01:39.7]} 18. d3 {[%clk
0:02:49]} 18... exd3 {[%clk 0:01:36.3]} 19. Qf3 {[%clk 0:02:40.3]} 19... Nxc3
{[%clk 0:01:06.2]} 20. Bxc3 {[%clk 0:02:41.2]} 20... c4 {[%clk 0:01:02.9]} 21.
Nxc4 {[%clk 0:02:40.4]} 21... b5 {[%clk 0:01:00.1]} 22. Ne5 {[%clk 0:02:40.5]}
22... Ba3+ {[%clk 0:00:59.4]} 23. Bb2 {[%clk 0:02:41]} 23... Qe7 {[%clk
0:00:40.9]} 24. Nxd3 {[%clk 0:02:36.3]} 24... Bxb2+ {[%clk 0:00:36.8]} 25. Kxb2
{[%clk 0:02:36.2]} 25... c5 {[%clk 0:00:36.3]} 26. Ne5 {[%clk 0:02:35.3]} 26...
c4 {[%clk 0:00:35.4]} 27. e4 {[%clk 0:02:34.7]} 27... Be6 {[%clk 0:00:33.3]} 28.
f5 {[%clk 0:02:33.3]} 28... Bc8 {[%clk 0:00:30.3]} 29. Nc6 {[%clk 0:02:32.1]}
29... Qc7 {[%clk 0:00:23]} 30. e5 {[%clk 0:02:23.4]} 30... Bb7 {[%clk 0:00:23]}
31. Rd6 {[%clk 0:02:23.7]} 31... Rac8 {[%clk 0:00:21.3]} 32. f6 {[%clk
0:02:23.8]} 32... Bxc6 {[%clk 0:00:18.5]} 33. Qg4 {[%clk 0:02:24]} 33... g6
{[%clk 0:00:17.4]} 34. Qxh4 {[%clk 0:02:24.4]} 34... c3+ {[%clk 0:00:11.2]} 35.
Ka1 {[%clk 0:02:23.5]} 1-0